[Event "Titled Tuesday Blitz June 6 Late 2023"]
[White "Beerdsen, Thomas"]
[Black "Romero Ruscalleda, Josep"]
[WhiteFideId "1030108"]
[BlackFideId "2231859"]
[WhiteElo "2553"]
[BlackElo "2183"]
[Result "1-0"]
[Round "3"]
[TimeControl "180+2"]
[Date "2023.06.07"]
[WhiteClock "0:02:30"]
[BlackClock "0:01:02"]
[Board "29"]

1. e4 {[%clk 0:03:00]}  g6 {[%clk 0:02:59]} 2. h4 {[%clk 0:02:59]}  h5 {[%clk 0:02:59]} 3. Nh3 {[%clk 0:02:59]}  Bg7 {[%clk 0:02:59]} 4. Ng5 {[%clk 0:02:59]}  d6 {[%clk 0:02:59]} 5. Bc4 {[%clk 0:02:59]}  Nf6 {[%clk 0:02:58]} 6. Nxf7 {[%clk 0:02:58]}  Qd7 {[%clk 0:02:53]} 7. Nxh8 {[%clk 0:02:58]}  Bxh8 {[%clk 0:02:53]} 8. d3 {[%clk 0:02:57]}  c6 {[%clk 0:02:51]} 9. Bb3 {[%clk 0:02:56]}  Na6 {[%clk 0:02:50]} 10. Nc3 {[%clk 0:02:55]}  Nc5 {[%clk 0:02:50]} 11. Bg5 {[%clk 0:02:56]}  Nxb3 {[%clk 0:02:48]} 12. axb3 {[%clk 0:02:57]}  Qe6 {[%clk 0:02:43]} 13. Qe2 {[%clk 0:02:53]}  Nd7 {[%clk 0:02:38]} 14. Be3 {[%clk 0:02:48]}  a6 {[%clk 0:02:35]} 15. d4 {[%clk 0:02:46]}  Nf6 {[%clk 0:02:32]} 16. f3 {[%clk 0:02:46]}  Qf7 {[%clk 0:02:26]} 17. Na4 {[%clk 0:02:44]}  Be6 {[%clk 0:02:22]} 18. Nb6 {[%clk 0:02:41]}  Rd8 {[%clk 0:02:22]} 19. c4 {[%clk 0:02:39]}  d5 {[%clk 0:02:12]} 20. exd5 {[%clk 0:02:37]}  cxd5 {[%clk 0:02:12]} 21. O-O {[%clk 0:02:36]}  Kf8 {[%clk 0:01:49]} 22. Rfe1 {[%clk 0:02:33]}  Rd6 {[%clk 0:01:25]} 23. c5 {[%clk 0:02:32]}  Rc6 {[%clk 0:01:25]} 24. b4 {[%clk 0:02:32]}  Bf5 {[%clk 0:01:21]} 25. b5 {[%clk 0:02:29]}  axb5 {[%clk 0:01:21]} 26. Bh6+ {[%clk 0:02:29]}  Kg8 {[%clk 0:01:20]} 27. Qxe7 {[%clk 0:02:29]}  Qxe7 {[%clk 0:01:02]} 28. Rxe7 {[%clk 0:02:30]} 1-0


[Site "https://www.chess.com"]

[Event "Titled Tuesday Blitz June 6 Late 2023"]
[White "Schmakel, Sam"]
[Black "Kejzar, Petra"]
[WhiteFideId "2039311"]
[BlackFideId "14610213"]
[WhiteElo "2356"]
[BlackElo "2089"]
[Result "1-0"]
[Round "3"]
[TimeControl "180+2"]
[Date "2023.06.07"]
[WhiteClock "0:00:45"]
[BlackClock "0:01:31"]
[Board "31"]

1. d4 {[%clk 0:03:00]}  d5 {[%clk 0:03:00]} 2. c4 {[%clk 0:03:01]}  c6 {[%clk 0:03:00]} 3. Nf3 {[%clk 0:03:00]}  Nf6 {[%clk 0:03:01]} 4. Nc3 {[%clk 0:03:01]}  dxc4 {[%clk 0:03:02]} 5. a4 {[%clk 0:03:01]}  Bf5 {[%clk 0:03:02]} 6. Ne5 {[%clk 0:03:01]}  e6 {[%clk 0:03:02]} 7. g3 {[%clk 0:02:56]}  Bb4 {[%clk 0:03:00]} 8. Bg2 {[%clk 0:02:56]}  O-O {[%clk 0:03:00]} 9. O-O {[%clk 0:02:56]}  Nbd7 {[%clk 0:03:00]} 10. Nxc4 {[%clk 0:02:55]}  a5 {[%clk 0:02:59]} 11. e4 {[%clk 0:02:43]}  Bg6 {[%clk 0:02:59]} 12. Qe2 {[%clk 0:02:43]}  Nb6 {[%clk 0:02:59]} 13. Ne5 {[%clk 0:02:26]}  Qxd4 {[%clk 0:02:36]} 14. Nxg6 {[%clk 0:02:22]}  hxg6 {[%clk 0:02:37]} 15. Be3 {[%clk 0:02:23]}  Qc4 {[%clk 0:02:37]} 16. Bxb6 {[%clk 0:02:23]}  Qb3 {[%clk 0:02:30]} 17. Bd4 {[%clk 0:02:14]}  Rfd8 {[%clk 0:02:28]} 18. Rfd1 {[%clk 0:02:14]}  Be7 {[%clk 0:02:17]} 19. e5 {[%clk 0:01:57]}  Nd5 {[%clk 0:02:16]} 20. Ne4 {[%clk 0:01:57]}  Qb4 {[%clk 0:02:09]} 21. Qc2 {[%clk 0:01:46]}  Bf8 {[%clk 0:02:03]} 22. Bc5 {[%clk 0:01:38]}  Bxc5 {[%clk 0:02:02]} 23. Nxc5 {[%clk 0:01:39]}  Qg4 {[%clk 0:01:55]} 24. Nxb7 {[%clk 0:01:35]}  Rdb8 {[%clk 0:01:55]} 25. Nd6 {[%clk 0:01:34]}  Nb4 {[%clk 0:01:50]} 26. Qe4 {[%clk 0:01:19]}  Qg5 {[%clk 0:01:48]} 27. Rac1 {[%clk 0:01:17]}  Nd5 {[%clk 0:01:46]} 28. Rxc6 {[%clk 0:01:07]}  Rxb2 {[%clk 0:01:46]} 29. Qd4 {[%clk 0:00:54]}  Rab8 {[%clk 0:01:45]} 30. Bxd5 {[%clk 0:00:53]}  exd5 {[%clk 0:01:42]} 31. Qxd5 {[%clk 0:00:54]}  Qe7 {[%clk 0:01:37]} 32. Rc8+ {[%clk 0:00:45]}  Rxc8 {[%clk 0:01:31]} 33. Nxc8 {[%clk 0:00:46]}  Kh7 {[%clk 0:01:32]} 34. Nxe7 {[%clk 0:00:46]}  Rb4 {[%clk 0:01:31]} 35. Qxf7 {[%clk 0:00:45]} 1-0


[Site "https://www.chess.com"]

[Event "Titled Tuesday Blitz June 6 Late 2023"]
[White "Tejedor Fuente, Enrique"]
[Black "Wang, Alexander J"]
[WhiteFideId "2299100"]
[BlackFideId "30955270"]
[WhiteElo "2496"]
[BlackElo "2274"]
[Result "1-0"]
[Round "3"]
[TimeControl "180+2"]
[Date "2023.06.07"]
[WhiteClock "0:00:09"]
[BlackClock "0:00:23"]
[Board "32"]

1. c3 {[%clk 0:03:00]}  d5 {[%clk 0:02:56]} 2. d4 {[%clk 0:03:00]}  e6 {[%clk 0:02:56]} 3. g3 {[%clk 0:03:00]}  Nf6 {[%clk 0:02:54]} 4. Bg2 {[%clk 0:03:00]}  c5 {[%clk 0:02:54]} 5. Nf3 {[%clk 0:03:01]}  Nc6 {[%clk 0:02:53]} 6. O-O {[%clk 0:03:01]}  Be7 {[%clk 0:02:46]} 7. Nbd2 {[%clk 0:03:01]}  O-O {[%clk 0:02:46]} 8. dxc5 {[%clk 0:03:01]}  Bxc5 {[%clk 0:02:39]} 9. b4 {[%clk 0:03:01]}  Be7 {[%clk 0:02:33]} 10. a3 {[%clk 0:02:59]}  b5 {[%clk 0:02:30]} 11. a4 {[%clk 0:02:57]}  bxa4 {[%clk 0:02:27]} 12. Qxa4 {[%clk 0:02:56]}  Bd7 {[%clk 0:02:24]} 13. b5 {[%clk 0:02:56]}  Nb8 {[%clk 0:02:23]} 14. c4 {[%clk 0:02:55]}  a6 {[%clk 0:02:18]} 15. Qb3 {[%clk 0:02:34]}  Qb6 {[%clk 0:02:15]} 16. cxd5 {[%clk 0:02:21]}  exd5 {[%clk 0:02:08]} 17. bxa6 {[%clk 0:02:11]}  Qxb3 {[%clk 0:01:47]} 18. Nxb3 {[%clk 0:02:12]}  Rxa6 {[%clk 0:01:47]} 19. Be3 {[%clk 0:01:58]}  Rxa1 {[%clk 0:01:45]} 20. Rxa1 {[%clk 0:01:59]}  Nc6 {[%clk 0:01:37]} 21. h3 {[%clk 0:01:54]}  Ne4 {[%clk 0:01:35]} 22. Nfd2 {[%clk 0:01:48]}  Nxd2 {[%clk 0:01:26]} 23. Bxd2 {[%clk 0:01:46]}  Be6 {[%clk 0:01:26]} 24. Rc1 {[%clk 0:01:45]}  Ne5 {[%clk 0:01:22]} 25. Bf4 {[%clk 0:01:40]}  Nc4 {[%clk 0:01:21]} 26. Nd2 {[%clk 0:01:40]}  Nxd2 {[%clk 0:01:14]} 27. Bxd2 {[%clk 0:01:41]}  Bf6 {[%clk 0:01:13]} 28. Bf4 {[%clk 0:01:19]}  d4 {[%clk 0:01:05]} 29. e3 {[%clk 0:01:11]}  dxe3 {[%clk 0:01:00]} 30. Bxe3 {[%clk 0:01:11]}  Rc8 {[%clk 0:01:00]} 31. Rd1 {[%clk 0:01:05]}  Rd8 {[%clk 0:00:52]} 32. Rc1 {[%clk 0:01:01]}  h6 {[%clk 0:00:51]} 33. h4 {[%clk 0:01:00]}  Rc8 {[%clk 0:00:50]} 34. Rd1 {[%clk 0:00:59]}  Bg4 {[%clk 0:00:49]} 35. Rb1 {[%clk 0:00:58]}  Bf5 {[%clk 0:00:48]} 36. Rb5 {[%clk 0:00:57]}  Bd7 {[%clk 0:00:46]} 37. Rd5 {[%clk 0:00:51]}  Bc6 {[%clk 0:00:37]} 38. Rc5 {[%clk 0:00:50]}  Bd7 {[%clk 0:00:36]} 39. Ra5 {[%clk 0:00:45]}  Bc6 {[%clk 0:00:27]} 40. Bxc6 {[%clk 0:00:36]}  Rxc6 {[%clk 0:00:27]} 41. Ra8+ {[%clk 0:00:37]}  Kh7 {[%clk 0:00:26]} 42. Ra7 {[%clk 0:00:38]}  Kg8 {[%clk 0:00:25]} 43. Kg2 {[%clk 0:00:38]}  Re6 {[%clk 0:00:24]} 44. Ra8+ {[%clk 0:00:38]}  Kh7 {[%clk 0:00:24]} 45. Rb8 {[%clk 0:00:38]}  Re7 {[%clk 0:00:24]} 46. Bc5 {[%clk 0:00:38]}  Rd7 {[%clk 0:00:24]} 47. Rb3 {[%clk 0:00:36]}  g6 {[%clk 0:00:25]} 48. Be3 {[%clk 0:00:35]}  h5 {[%clk 0:00:25]} 49. Rb6 {[%clk 0:00:35]}  Kg7 {[%clk 0:00:26]} 50. Rc6 {[%clk 0:00:35]}  Be5 {[%clk 0:00:26]} 51. Kf3 {[%clk 0:00:35]}  Bd4 {[%clk 0:00:26]} 52. Bf4 {[%clk 0:00:34]}  Bf6 {[%clk 0:00:26]} 53. Rc2 {[%clk 0:00:33]}  Rb7 {[%clk 0:00:27]} 54. Be3 {[%clk 0:00:33]}  Be5 {[%clk 0:00:26]} 55. Rc5 {[%clk 0:00:33]}  Bf6 {[%clk 0:00:26]} 56. Rd5 {[%clk 0:00:33]}  Be7 {[%clk 0:00:26]} 57. Bd4+ {[%clk 0:00:33]}  Bf6 {[%clk 0:00:27]} 58. Be3 {[%clk 0:00:33]}  Be7 {[%clk 0:00:27]} 59. Rd3 {[%clk 0:00:34]}  Bf6 {[%clk 0:00:27]} 60. Ra3 {[%clk 0:00:33]}  Be7 {[%clk 0:00:28]} 61. Bd4+ {[%clk 0:00:33]}  Bf6 {[%clk 0:00:28]} 62. Be3 {[%clk 0:00:32]}  Rd7 {[%clk 0:00:28]} 63. Ra6 {[%clk 0:00:32]}  Rb7 {[%clk 0:00:28]} 64. Ke4 {[%clk 0:00:32]}  Re7+ {[%clk 0:00:28]} 65. Kf3 {[%clk 0:00:31]}  Rb7 {[%clk 0:00:29]} 66. Rc6 {[%clk 0:00:32]}  Rd7 {[%clk 0:00:29]} 67. Kg2 {[%clk 0:00:32]}  Rb7 {[%clk 0:00:29]} 68. Rc4 {[%clk 0:00:31]}  Be5 {[%clk 0:00:29]} 69. Rc2 {[%clk 0:00:31]}  Bf6 {[%clk 0:00:30]} 70. Rc5 {[%clk 0:00:31]}  Be7 {[%clk 0:00:30]} 71. Re5 {[%clk 0:00:30]}  Bf6 {[%clk 0:00:30]} 72. Re8 {[%clk 0:00:29]}  Rd7 {[%clk 0:00:30]} 73. Bc5 {[%clk 0:00:28]}  Rd8 {[%clk 0:00:30]} 74. Re2 {[%clk 0:00:27]}  Rd7 {[%clk 0:00:30]} 75. Bb6 {[%clk 0:00:27]}  Rb7 {[%clk 0:00:30]} 76. Be3 {[%clk 0:00:26]}  Rd7 {[%clk 0:00:30]} 77. Ra2 {[%clk 0:00:25]}  Rd5 {[%clk 0:00:30]} 78. f3 {[%clk 0:00:25]}  Rd7 {[%clk 0:00:30]} 79. Bf2 {[%clk 0:00:25]}  Re7 {[%clk 0:00:31]} 80. Rd2 {[%clk 0:00:24]}  Rb7 {[%clk 0:00:31]} 81. Rc2 {[%clk 0:00:24]}  Rd7 {[%clk 0:00:31]} 82. g4 {[%clk 0:00:24]}  hxg4 {[%clk 0:00:30]} 83. fxg4 {[%clk 0:00:25]}  Rb7 {[%clk 0:00:30]} 84. Rc4 {[%clk 0:00:23]}  Be5 {[%clk 0:00:30]} 85. Kf3 {[%clk 0:00:23]}  Bf6 {[%clk 0:00:30]} 86. Re4 {[%clk 0:00:23]}  Rb3+ {[%clk 0:00:30]} 87. Kg2 {[%clk 0:00:23]}  Rb2 {[%clk 0:00:30]} 88. g5 {[%clk 0:00:23]}  Bd8 {[%clk 0:00:29]} 89. Kf3 {[%clk 0:00:22]}  Rb3+ {[%clk 0:00:29]} 90. Kg4 {[%clk 0:00:21]}  Bb6 {[%clk 0:00:30]} 91. Be1 {[%clk 0:00:18]}  Bc7 {[%clk 0:00:25]} 92. Rc4 {[%clk 0:00:17]}  Be5 {[%clk 0:00:25]} 93. Rc5 {[%clk 0:00:14]}  Bd4 {[%clk 0:00:23]} 94. Rd5 {[%clk 0:00:12]}  Bc3 {[%clk 0:00:23]} 95. Bf2 {[%clk 0:00:09]}  Rb5 {[%clk 0:00:23]} 96. Rxb5 {[%clk 0:00:09]} 1-0


[Site "https://www.chess.com"]

[Event "Titled Tuesday Blitz June 6 Late 2023"]
[White "Sanchez, Robert"]
[Black "Gadimbayli, Abdulla"]
[WhiteFideId "2034360"]
[BlackFideId "13404938"]
[WhiteElo "1877"]
[BlackElo "2386"]
[Result "1/2-1/2"]
[Round "3"]
[TimeControl "180+2"]
[Date "2023.06.07"]
[WhiteClock "0:01:53"]
[BlackClock "0:01:21"]
[Board "33"]

1. e4 {[%clk 0:03:00]}  c5 {[%clk 0:02:47]} 2. Nf3 {[%clk 0:03:00]}  d6 {[%clk 0:02:46]} 3. d4 {[%clk 0:03:01]}  cxd4 {[%clk 0:02:47]} 4. Nxd4 {[%clk 0:03:01]}  Nf6 {[%clk 0:02:47]} 5. Nc3 {[%clk 0:03:02]}  a6 {[%clk 0:02:47]} 6. Be3 {[%clk 0:03:02]}  e5 {[%clk 0:02:46]} 7. Nb3 {[%clk 0:03:03]}  Be7 {[%clk 0:02:46]} 8. f3 {[%clk 0:03:03]}  O-O {[%clk 0:02:46]} 9. Qd2 {[%clk 0:03:04]}  b5 {[%clk 0:02:47]} 10. O-O-O {[%clk 0:03:04]}  Be6 {[%clk 0:02:45]} 11. g4 {[%clk 0:03:04]}  Nc6 {[%clk 0:02:43]} 12. g5 {[%clk 0:02:55]}  Nh5 {[%clk 0:02:40]} 13. Nd5 {[%clk 0:02:54]}  Rc8 {[%clk 0:02:12]} 14. Kb1 {[%clk 0:02:29]}  Bxd5 {[%clk 0:01:57]} 15. exd5 {[%clk 0:02:17]}  Nb8 {[%clk 0:01:57]} 16. Bh3 {[%clk 0:02:13]}  Nd7 {[%clk 0:01:42]} 17. Bg4 {[%clk 0:02:10]}  Nf4 {[%clk 0:01:41]} 18. Bxf4 {[%clk 0:02:05]}  exf4 {[%clk 0:01:42]} 19. Bxd7 {[%clk 0:02:06]}  Qxd7 {[%clk 0:01:41]} 20. h4 {[%clk 0:02:06]}  Bd8 {[%clk 0:01:22]} 21. Nd4 {[%clk 0:01:53]}  Bb6 {[%clk 0:01:21]} 1/2-1/2


[Site "https://www.chess.com"]

[Event "Titled Tuesday Blitz June 6 Late 2023"]
[White "Ogreberbere"]
[Black "Caruana, Fabiano"]
[BlackFideId "2020009"]
[WhiteElo "2193"]
[BlackElo "2832"]
[Result "0-1"]
[Round "3"]
[TimeControl "180+2"]
[Date "2023.06.07"]
[WhiteClock "0:00:23"]
[BlackClock "0:01:44"]
[Board "34"]

1. d4 {[%clk 0:03:00]}  b5 {[%clk 0:02:58]} 2. a4 {[%clk 0:02:55]}  b4 {[%clk 0:02:58]} 3. c3 {[%clk 0:02:53]}  e6 {[%clk 0:02:57]} 4. e4 {[%clk 0:02:52]}  Bb7 {[%clk 0:02:57]} 5. Bd3 {[%clk 0:02:51]}  Nf6 {[%clk 0:02:57]} 6. Qe2 {[%clk 0:02:49]}  d5 {[%clk 0:02:57]} 7. e5 {[%clk 0:02:36]}  Nfd7 {[%clk 0:02:57]} 8. f4 {[%clk 0:02:32]}  c5 {[%clk 0:02:56]} 9. Nf3 {[%clk 0:02:32]}  c4 {[%clk 0:02:56]} 10. Bc2 {[%clk 0:02:27]}  b3 {[%clk 0:02:56]} 11. Bd1 {[%clk 0:02:26]}  Nc6 {[%clk 0:02:56]} 12. O-O {[%clk 0:02:25]}  g6 {[%clk 0:02:45]} 13. Be3 {[%clk 0:02:20]}  h5 {[%clk 0:02:42]} 14. Nbd2 {[%clk 0:02:19]}  Qc7 {[%clk 0:02:40]} 15. Bf2 {[%clk 0:02:18]}  Be7 {[%clk 0:02:35]} 16. Bh4 {[%clk 0:02:17]}  O-O-O {[%clk 0:02:35]} 17. Bxe7 {[%clk 0:02:11]}  Nxe7 {[%clk 0:02:36]} 18. Ng5 {[%clk 0:02:08]}  Rdf8 {[%clk 0:02:36]} 19. Qf2 {[%clk 0:02:05]}  Kb8 {[%clk 0:02:34]} 20. Bf3 {[%clk 0:02:05]}  Nf5 {[%clk 0:02:28]} 21. g3 {[%clk 0:01:57]}  a5 {[%clk 0:02:28]} 22. Rfe1 {[%clk 0:01:30]}  Nb6 {[%clk 0:02:27]} 23. Nf1 {[%clk 0:01:29]}  Bc6 {[%clk 0:02:27]} 24. Ne3 {[%clk 0:01:27]}  Nxe3 {[%clk 0:02:19]} 25. Qxe3 {[%clk 0:01:25]}  Kb7 {[%clk 0:02:18]} 26. Ra3 {[%clk 0:01:22]}  Ra8 {[%clk 0:02:09]} 27. Kf2 {[%clk 0:01:21]}  Nxa4 {[%clk 0:02:06]} 28. Qd2 {[%clk 0:01:17]}  Nb6 {[%clk 0:02:05]} 29. h3 {[%clk 0:01:16]}  a4 {[%clk 0:02:05]} 30. Ke3 {[%clk 0:01:10]}  Nc8 {[%clk 0:02:05]} 31. Qg2 {[%clk 0:01:09]}  Na7 {[%clk 0:02:04]} 32. g4 {[%clk 0:01:04]}  hxg4 {[%clk 0:02:01]} 33. hxg4 {[%clk 0:01:04]}  Nb5 {[%clk 0:02:02]} 34. Raa1 {[%clk 0:01:03]}  a3 {[%clk 0:02:01]} 35. bxa3 {[%clk 0:01:03]}  Nxc3 {[%clk 0:01:55]} 36. Rh1 {[%clk 0:00:58]}  Rxh1 {[%clk 0:01:53]} 37. Rxh1 {[%clk 0:00:56]}  Rxa3 {[%clk 0:01:51]} 38. Qb2 {[%clk 0:00:55]}  Nb5 {[%clk 0:01:51]} 39. Rh7 {[%clk 0:00:53]}  c3 {[%clk 0:01:50]} 40. Qb1 {[%clk 0:00:35]}  c2 {[%clk 0:01:46]} 41. Qb2 {[%clk 0:00:33]}  Ra2 {[%clk 0:01:46]} 42. Qc1 {[%clk 0:00:28]}  Na3 {[%clk 0:01:44]} 43. Rxf7 {[%clk 0:00:24]}  Qxf7 {[%clk 0:01:43]} 44. Nxf7 {[%clk 0:00:24]}  b2 {[%clk 0:01:44]} 45. Nd6+ {[%clk 0:00:23]}  Kc7 {[%clk 0:01:44]} 0-1


[Site "https://www.chess.com"]

[Event "Titled Tuesday Blitz June 6 Late 2023"]
[White "Nepomniachtchi, Ian"]
[Black "Fiorito, Joaquin"]
[WhiteFideId "4168119"]
[BlackFideId "180173"]
[WhiteElo "2781"]
[BlackElo "2199"]
[Result "1-0"]
[Round "3"]
[TimeControl "180+2"]
[Date "2023.06.07"]
[WhiteClock "0:00:45"]
[BlackClock "0:00:02"]
[Board "35"]

1. e4 {[%clk 0:03:00]}  c6 {[%clk 0:03:00]} 2. d4 {[%clk 0:03:00]}  d5 {[%clk 0:03:00]} 3. Nd2 {[%clk 0:03:01]}  dxe4 {[%clk 0:03:00]} 4. Nxe4 {[%clk 0:03:01]}  Nf6 {[%clk 0:03:01]} 5. Nxf6+ {[%clk 0:03:02]}  exf6 {[%clk 0:03:02]} 6. Be3 {[%clk 0:03:01]}  Bd6 {[%clk 0:03:01]} 7. Bd3 {[%clk 0:03:02]}  O-O {[%clk 0:03:00]} 8. Ne2 {[%clk 0:03:02]}  Re8 {[%clk 0:03:00]} 9. O-O {[%clk 0:03:02]}  Nd7 {[%clk 0:03:00]} 10. Ng3 {[%clk 0:03:01]}  Nf8 {[%clk 0:02:59]} 11. Nf5 {[%clk 0:03:01]}  Bxf5 {[%clk 0:02:52]} 12. Bxf5 {[%clk 0:03:02]}  g6 {[%clk 0:02:51]} 13. Bg4 {[%clk 0:02:53]}  f5 {[%clk 0:02:48]} 14. Bf3 {[%clk 0:02:53]}  Qc7 {[%clk 0:02:46]} 15. h3 {[%clk 0:02:48]}  Rad8 {[%clk 0:02:44]} 16. c3 {[%clk 0:02:48]}  Bf4 {[%clk 0:02:29]} 17. Bxf4 {[%clk 0:02:47]}  Qxf4 {[%clk 0:02:30]} 18. Qb3 {[%clk 0:02:47]}  Qc7 {[%clk 0:02:27]} 19. Rae1 {[%clk 0:02:37]}  Kg7 {[%clk 0:02:26]} 20. Qc4 {[%clk 0:02:34]}  Ne6 {[%clk 0:02:22]} 21. b4 {[%clk 0:02:16]}  Ng5 {[%clk 0:02:13]} 22. Bd1 {[%clk 0:02:16]}  Ne4 {[%clk 0:02:04]} 23. Re2 {[%clk 0:02:14]}  Nd6 {[%clk 0:01:59]} 24. Qd3 {[%clk 0:02:12]}  Rxe2 {[%clk 0:01:58]} 25. Bxe2 {[%clk 0:02:11]}  Re8 {[%clk 0:01:58]} 26. Bf3 {[%clk 0:02:08]}  Ne4 {[%clk 0:01:03]} 27. Re1 {[%clk 0:02:08]}  Nc5 {[%clk 0:00:53]} 28. Qb1 {[%clk 0:02:06]}  Rxe1+ {[%clk 0:00:53]} 29. Qxe1 {[%clk 0:02:07]}  Ne6 {[%clk 0:00:54]} 30. a4 {[%clk 0:02:05]}  a5 {[%clk 0:00:49]} 31. d5 {[%clk 0:02:02]}  cxd5 {[%clk 0:00:45]} 32. Bxd5 {[%clk 0:02:03]}  Nf4 {[%clk 0:00:43]} 33. Bf3 {[%clk 0:02:03]}  axb4 {[%clk 0:00:43]} 34. cxb4 {[%clk 0:02:01]}  Nd3 {[%clk 0:00:38]} 35. Qd2 {[%clk 0:01:58]}  Ne5 {[%clk 0:00:35]} 36. a5 {[%clk 0:01:53]}  Nxf3+ {[%clk 0:00:17]} 37. gxf3 {[%clk 0:01:54]}  Qc6 {[%clk 0:00:17]} 38. Kg2 {[%clk 0:01:52]}  h5 {[%clk 0:00:18]} 39. Qb2+ {[%clk 0:01:48]}  Kh6 {[%clk 0:00:18]} 40. b5 {[%clk 0:01:48]}  Qd6 {[%clk 0:00:16]} 41. h4 {[%clk 0:01:33]}  Kh7 {[%clk 0:00:13]} 42. Qa2 {[%clk 0:01:33]}  Qf6 {[%clk 0:00:12]} 43. a6 {[%clk 0:01:32]}  Qxh4 {[%clk 0:00:11]} 44. Qxf7+ {[%clk 0:01:30]}  Kh6 {[%clk 0:00:12]} 45. Qf8+ {[%clk 0:01:28]}  Kh7 {[%clk 0:00:12]} 46. Qc5 {[%clk 0:01:26]}  Qg5+ {[%clk 0:00:12]} 47. Kf1 {[%clk 0:01:26]}  bxa6 {[%clk 0:00:12]} 48. bxa6 {[%clk 0:01:27]}  Qd8 {[%clk 0:00:04]} 49. a7 {[%clk 0:01:25]}  h4 {[%clk 0:00:03]} 50. Kg2 {[%clk 0:01:11]}  Qg5+ {[%clk 0:00:02]} 51. Kh3 {[%clk 0:01:11]}  Qg1 {[%clk 0:00:01]} 52. Qe7+ {[%clk 0:01:10]}  Kh6 {[%clk 0:00:02]} 53. Qxh4+ {[%clk 0:01:10]}  Kg7 {[%clk 0:00:03]} 54. Qd4+ {[%clk 0:00:58]}  Kh7 {[%clk 0:00:02]} 55. Qh4+ {[%clk 0:00:55]}  Kg7 {[%clk 0:00:01]} 56. a8=Q {[%clk 0:00:53]}  Qh1+ {[%clk 0:00:01]} 57. Kg3 {[%clk 0:00:53]}  f4+ {[%clk 0:00:02]} 58. Kg4 {[%clk 0:00:45]}  Qg2+ {[%clk 0:00:02]} 59. Kxf4 {[%clk 0:00:45]} 1-0


[Site "https://www.chess.com"]

[Event "Titled Tuesday Blitz June 6 Late 2023"]
[White "Duda, Jan-Krzysztof"]
[Black "Eugene, Floryan"]
[WhiteFideId "1170546"]
[BlackFideId "20694784"]
[WhiteElo "2783"]
[BlackElo "2369"]
[Result "1-0"]
[Round "3"]
[TimeControl "180+2"]
[Date "2023.06.07"]
[WhiteClock "0:02:11"]
[BlackClock "0:01:15"]
[Board "36"]

1. d4 {[%clk 0:03:00]}  f5 {[%clk 0:02:57]} 2. c4 {[%clk 0:02:56]}  Nf6 {[%clk 0:02:54]} 3. Nc3 {[%clk 0:02:56]}  g6 {[%clk 0:02:54]} 4. h4 {[%clk 0:02:52]}  Bg7 {[%clk 0:02:39]} 5. h5 {[%clk 0:02:51]}  Nxh5 {[%clk 0:02:36]} 6. e4 {[%clk 0:02:50]}  O-O {[%clk 0:02:33]} 7. exf5 {[%clk 0:02:46]}  e5 {[%clk 0:02:24]} 8. fxg6 {[%clk 0:02:41]}  hxg6 {[%clk 0:02:22]} 9. dxe5 {[%clk 0:02:28]}  Qe7 {[%clk 0:02:02]} 10. Qd5+ {[%clk 0:02:23]}  Qf7 {[%clk 0:02:03]} 11. g4 {[%clk 0:02:18]}  Bxe5 {[%clk 0:01:38]} 12. gxh5 {[%clk 0:02:14]}  Re8 {[%clk 0:01:19]} 13. Qxf7+ {[%clk 0:02:11]}  Kxf7 {[%clk 0:01:19]} 14. hxg6+ {[%clk 0:02:11]}  Kxg6 {[%clk 0:01:19]} 15. Bd3+ {[%clk 0:02:11]}  Kg7 {[%clk 0:01:18]} 16. Bh6+ {[%clk 0:02:10]}  Kg8 {[%clk 0:01:18]} 17. O-O-O {[%clk 0:02:10]}  Bxc3 {[%clk 0:01:15]} 18. bxc3 {[%clk 0:02:11]}  d6 {[%clk 0:01:15]} 19. Nf3 {[%clk 0:02:11]}  Bg4 {[%clk 0:01:15]} 20. Rdg1 {[%clk 0:02:11]} 1-0


[Site "https://www.chess.com"]

[Event "Titled Tuesday Blitz June 6 Late 2023"]
[White "Bluebaum, Matthias"]
[Black "Melikyan, Gnel"]
[WhiteFideId "24651516"]
[BlackFideId "54109990"]
[WhiteElo "2639"]
[BlackElo "2138"]
[Result "1-0"]
[Round "3"]
[TimeControl "180+2"]
[Date "2023.06.07"]
[WhiteClock "0:01:36"]
[BlackClock "0:00:43"]
[Board "37"]

1. d4 {[%clk 0:03:00]}  Nf6 {[%clk 0:02:57]} 2. c4 {[%clk 0:03:00]}  g6 {[%clk 0:02:56]} 3. Nc3 {[%clk 0:03:01]}  Bg7 {[%clk 0:02:56]} 4. e4 {[%clk 0:03:01]}  d6 {[%clk 0:02:57]} 5. Nf3 {[%clk 0:03:02]}  O-O {[%clk 0:02:58]} 6. Be2 {[%clk 0:03:03]}  e5 {[%clk 0:02:58]} 7. Be3 {[%clk 0:03:03]}  Ng4 {[%clk 0:02:55]} 8. Bg5 {[%clk 0:03:04]}  f6 {[%clk 0:02:56]} 9. Bh4 {[%clk 0:03:04]}  g5 {[%clk 0:02:56]} 10. Bg3 {[%clk 0:03:05]}  Nh6 {[%clk 0:02:55]} 11. dxe5 {[%clk 0:03:05]}  fxe5 {[%clk 0:02:55]} 12. h4 {[%clk 0:03:06]}  Nf7 {[%clk 0:02:48]} 13. hxg5 {[%clk 0:02:58]}  Nxg5 {[%clk 0:02:46]} 14. Nxg5 {[%clk 0:02:55]}  Qxg5 {[%clk 0:02:46]} 15. Nd5 {[%clk 0:02:56]}  Na6 {[%clk 0:02:42]} 16. Rh5 {[%clk 0:02:47]}  Qd8 {[%clk 0:02:38]} 17. Bh4 {[%clk 0:02:45]}  Qe8 {[%clk 0:02:28]} 18. c5 {[%clk 0:02:43]}  Qf7 {[%clk 0:01:57]} 19. cxd6 {[%clk 0:02:16]}  cxd6 {[%clk 0:01:47]} 20. Bxa6 {[%clk 0:02:16]}  bxa6 {[%clk 0:01:47]} 21. Rc1 {[%clk 0:02:17]}  Kh8 {[%clk 0:01:35]} 22. Rc7 {[%clk 0:02:15]}  Qg6 {[%clk 0:01:35]} 23. Rg5 {[%clk 0:01:40]}  Qxe4+ {[%clk 0:01:33]} 24. Ne3 {[%clk 0:01:40]}  Qb4+ {[%clk 0:01:18]} 25. Qd2 {[%clk 0:01:35]}  Qxd2+ {[%clk 0:00:59]} 26. Kxd2 {[%clk 0:01:36]}  Bf6 {[%clk 0:00:45]} 27. Rh5 {[%clk 0:01:35]}  Bxh4 {[%clk 0:00:43]} 28. Rhxh7+ {[%clk 0:01:35]}  Kg8 {[%clk 0:00:43]} 29. Rcg7# {[%clk 0:01:36]} 1-0


[Site "https://www.chess.com"]